Workbook

Sheet Total
A1: Nom | B1: Total
A2: Cuve | B2: =Cuve!F20 -> 413.56
A3: Meuble | B3: =meuble!E9 -> 83.39
A4: Automatisme | B4: =automatisme!E4 -> 12.64
A5: Substrat + Pvs | B5: ='substrat + PVs'!E5 -> 309.88
A6: sels | B6: =Sels!E3 -> 24.9
A7: Mesure | B7: =mesure!E5 -> 93
A8: Pompes de brassage | B8: ='pompes brassage'!E4 -> 41.84
A9: Températures | B9: =Températures!E6 -> 12.99
A10: Eclairages | B10: =Eclairages!E16 -> 65.94
A11: Décante | B11: =Décante!E5 -> 138.01
A12: Electricité | B12: =Electricité!E7 -> 83.36
A13: Tuyauterie | B13: =Tuyauterie!E18 -> 113.56
A14: Osmoseur | B14: =Osmoseur!E7 -> 120.54
A16: Total | B16: =SUM(B2:B15) -> 1627.86

Sheet meuble
A1: Matériels | B1: Ref | C1: PU | D1: Nombre | E1: total | F1: Remarques | G1: Site | H1: Date D'achat
A2: Corniere 597 mm 30*30 | C2: 2.61 | D2: 4 | E2: =D2*C2 -> 10.44 | G2: metalenstock | H2: Fait
A3: Corniere 697 mm 30*30 | C3: 2.61 | D3: 4 | E3: 10.44 | G3: metalenstock | H3: Fait
A4: Corniere 1060mm 30*30 | C4: 4.63 | D4: 4 | E4: 18.52 | G4: metalenstock | H4: Fait
A5: Peinture | C5: 24.99 | D5: 1 | E5: 24.99 | G5: Bricolage | H5: Fait
A6: Vis | C6: 3 | D6: 1 | E6: 3 | G6: Bricolage | H6: Fait
A7: soudure | C7: 16 | D7: 1 | E7: 16 | G7: Bricolage | H7: Fait
A8: Meche | C8: 10 | D8: 1 | E8: 10 | G8: Bricolage
D9: Total | E9: =SUM(E2:E9) -> 0

Sheet Cuve
B1: Matériels | C1: Ref | D1: PU | E1: Nombre | F1: total | G1: Remarques | H1: Site | I1: Date D'achat
A2: Cuve | B2: Avant Cuve | C2: verre normal bord brut | D2: 49.92 | E2: 1 | F2: =D2*E2 -> 49.92 | I2: Fait
B3: Cotés cuve | C3: verre normal bord brut | D3: =97.31/2 -> 48.655 | E3: 2 | F3: 97.31 | G3: Encoche 200*85mm + Trou 32mm | I3: Fait
B4: fond Cuve | C4: verre transparent bord brut | D4: 36.78 | E4: 1 | F4: 36.78 | I4: Fait
B5: arriere cuve | C5: verre transparent bord brut | D5: 70.62 | E5: 1 | F5: 70.62 | I5: Fait
B6: Livraison | D6: 58 | E6: 1 | F6: 58 | I6: Fait
A7: Sortie | B7: arriere devers | C7: verre normal bord brut | D7: 1.15 | E7: 1 | F7: 1.15 | I7: Fait
B8: cotes devers | C8: verre normal bord brut | D8: 0.55 | E8: 2 | F8: 1.1 | G8: Trou 45mm a faire avec le foret | I8: Fait
B9: Fond devers | C9: verre normal bord brut | D9: 0.6 | E9: 1 | F9: 0.6 | I9: Fait
A10: Décante | B10: fond tech | C10: verre normal bord brut | D10: 7.37 | E10: 1 | F10: 7.37 | I10: Fait
B11: AV/AR tech | C11: verre normal bord brut | D11: 7.9 | E11: 2 | F11: 15.8 | I11: Fait
B12: cotés tech | C12: verre normal bord brut | D12: 3.77 | E12: 2 | F12: 7.54 | I12: Fait
B13: Lame | C13: verre normal bord brut | D13: 1.88 | E13: 4 | F13: 7.52 | I13: Fait
B14: Colle | D14: 9.99 | E14: 2 | F14: 19.98 | I14: Fait
B15: pistolet | D15: 7.5 | E15: 1 | F15: 7.5 | I15: Fait
B16: foret 45mm | D16: 2.5 | E16: 1 | F16: 2.5 | I16: Fait
B17: Peinture | D17: 8 | E17: 1 | F17: 8 | I17: Fait
B18: Mousse | D18: 5.99 | E18: 3 | F18: 17.97 | I18: Fait
B19: Bac reserve eau | D19: 3.9 | E19: 1 | F19: 3.9 | I19: Fait
E20: total | F20: =SUM(F2:F19) -> 413.56

Sheet automatisme
A1: Matériels | B1: Ref | C1: PU | D1: Nombre | E1: total | F1: Remarques | G1: Site | H1: Date D'achat
A2: Pompe Osmlolateur | B2: Mini Micro Submersible Pompe À Eau | C2: 5.44 | D2: 1 | E2: =D2*C2 -> 5.44 | G2: Aliexpress | H2: Fait
A3: Capteur niveau eau | C3: =7.2/5 -> 1.44 | D3: 5 | E3: =D3*C3 -> 7.2 | G3: Aliexpress | H3: Fait
D4: Total | E4: =SUM(E2:E3) -> 12.64

Sheet substrat + PVs
A1: 50 | B1: Ref | C1: PU | D1: Nombre | E1: total | F1: Remarques | G1: Site | H1: Date D'achat
A2: Sable | B2: AQUA MEDIC Bali Sand 0,5-1,2mm - 10 kg | C2: 29.99 | D2: 2 | E2: =D2*C2 -> 59.98 | F2: 15Kg | G2: Aquastore | H2: Fait
A3: PV | C3: 15.9 | D3: 7 | E3: =D3*C3 -> 111.3 | F3: 7kg | G3: Marinehome | H3: Fait
A4: Reefrock | C4: 9.9 | D4: 14 | E4: =D4*C4 -> 138.6 | F4: 14kg | G4: Marinehome | H4: Fait
D5: Total | E5: =SUM(E2:E4) -> 309.88

Sheet Sels
A1: Matériels | B1: Ref | C1: PU | D1: Nombre | E1: total | F1: Remarques | G1: Site | H1: Date D'achat
C2: =20.75*1.2 -> 24.9 | D2: 1 | E2: =D2*C2 -> 24.9 | F2: 35g/L => 1025 200L=> 7Kg | G2: Marine home | H2: Septembre
D3: Total | E3: =SUM(E2:E2) -> 24.9

Sheet mesure
A1: Matériels | B1: Ref | C1: PU | D1: Nombre | E1: total | F1: Remarques | G1: Site | H1: Date D'achat
A2: densimetres | C2: 11 | D2: 1 | E2: =D2*C2 -> 11 | G2: Aliexpress | H2: Fait
A3: kits mesures | C3: 30 | D3: 1 | E3: 41 | G3: Botanique | H3: Fait
A4: redox | C4: 15 | D4: 1 | E4: 41 | H4: Fait
D5: Total | E5: =SUM(E2:E4) -> 93

Sheet pompes brassage
A1: Matériels | B1: Ref | C1: PU | D1: Nombre | E1: total | F1: Remarques | G1: Site | H1: Date D'achat
A2: Pompe de brassage | B2: JVP-110 | C2: 8.1 | D2: 2 | E2: =D2*C2 -> 16.2 | F2: 40X le volume => 7200 L | G2: Aliexpress | H2: Fait
A3: Pompe de brassage | B3: JVP-101A | C3: 12.82 | D3: 2 | E3: =D3*C3 -> 25.64 | G3: Aliexpress | H3: Fait
D4: Total | E4: =SUM(E2:E3) -> 41.84

Sheet Températures
A1: Matériels | B1: Ref | C1: PU | D1: Nombre | E1: total | F1: Remarques | G1: Site | H1: Date D'achat
A2: Chauffage | C2: 12.99 | D2: 1 | E2: =D2*C2 -> 12.99 | F2: 300W | G2: Aquastore | H2: Fait
D6: Total | E6: =SUM(E2) -> 12.99

Sheet Eclairages
A1: Matériels | B1: Ref | C1: PU | D1: Nombre | E1: total | F1: Remarques | G1: Site | H1: Date D'achat
A2: Leds | C2: 0.2 | D2: 17 | E2: =D2*C2 -> 3.4 | G2: Aliexpress | H2: Fait | I2: (manque led vert)
A3: Leds UV | C3: =4.4/10 -> 0.44 | D3: 4 | E3: 1.76 | G3: Aliexpress | H3: Fait
A4: Regle aluminium | C4: 15 | D4: 1 | E4: 15 | G4: Magasin de bricolage | H4: Fait
A5: Alimentation 12V | C5: 0 | D5: 1 | E5: 0 | G5: Recupération | H5: Fait
A6: Carte Commande | C6: 4.99 | D6: 1 | E6: 4.99 | G6: SeedStudio | H6: Fait
A7: Circuit par led | C7: 4.99 | D7: 1 | E7: 4.99 | G7: SeedStudio | H7: Fait
A8: Pieds | D8: 2 | E8: 0 | H8: Fait
A9: Ventilateur | C9: 0 | D9: 6 | E9: 0 | G9: Recupération | H9: Fait
A10: Lentille | C10: 1.79 | D10: 20 | E10: 35.8 | G10: Aliexpress | H10: Fait
A11: Vis M2 | D11: 80 | E11: 0 | G11: Aliexpress | H11: Fait
A12: Vis M3 | D12: 80 | E12: 0 | G12: Aliexpress | H12: Fait
A13: Vis ventilateur ?? | E13: 0 | G13: Aliexpress | H13: Fait
A14: Vis montage ?? | E14: 0 | G14: Aliexpress | H14: Fait
A15: Resistance | C15: 0.12 | D15: 17 | E15: 2.04 | G15: Aliexpress | H15: Fait
D16: Total | E16: =SUM(E2:E10) -> 65.94

Sheet Electricité
A1: Matériels | B1: Ref | C1: PU | D1: Nombre | E1: total | F1: Remarques | G1: Site | H1: Date D'achat
A2: Rail DIN | B2: 581538 | C2: 4.99 | D2: 4 | E2: =D2*C2 -> 19.96 | F2: nombre de module 15 prise + 2 dijoncteur + emplacement Ordinateur | G2: Magasin de bricolage | H2: Fait
A3: disjoncteur | B3: 948469 | C3: 6.95 | D3: 2 | E3: =D3*C3 -> 13.9 | G3: Magasin de bricolage | H3: Fait
A4: Prise electrique | B4: 1159821 | C4: 4.95 | D4: 10 | E4: =D4*C4 -> 49.5 | G4: Magasin de bricolage | H4: Fait
D7: Total | E7: =SUM(E2:E6) -> 83.36

Sheet Décante
A1: Matériels | B1: Ref | C1: PU | D1: Nombre | E1: total | F1: Remarques | G1: Site | H1: Date D'achat
A2: Ecumeurs | B2: Curve A5 | C2: 122 | D2: 1 | E2: =D2*C2 -> 122 | F2: Mini 2X voulume du fabricant | G2: Aliexpress | H2: Fait
A3: pompes remontés | C3: 16.01 | D3: 1 | E3: =D3*C3 -> 16.01 | F3: 3 et 4 X volumes du bac par heure Soit 11L/min | G3: Aliexpress
E5: =SUM(E2:E3) -> 138.01

Sheet Tuyauterie
A1: Matériels | B1: Ref | C1: PU | D1: Nombre | E1: total | F1: Remarques | G1: Site | H1: Date D'achat
A2: Joint uniseal® 32mm | C2: 3.5 | D2: 2 | E2: =D2*C2 -> 7 | G2: Neo3plus | H2: Fait
A3: Coude 90 32mm | C3: 1.9 | D3: 2 | E3: 3.8 | G3: aquastore | H3: Fait
A4: Vanne 32mm | C4: 12.9 | D4: 2 | E4: 25.8 | G4: aquastore | H4: Fait
A5: Tube 32mm | C5: 3.9 | D5: 2 | E5: 7.8 | G5: aquastore | H5: Fait
A6: Embout cannelé 32mm | C6: 2.9 | D6: 4 | E6: 11.6 | G6: aquastore | H6: Fait
A7: Tuyau souple 32mm | C7: 2.45 | D7: 5 | E7: 12.25 | G7: garda-aquatic | H7: Fait
A8: T 32mm | C8: 1.9 | D8: 2 | E8: 3.8 | G8: aquastore | H8: Fait
A9: Bouchon 32mm | C9: 1.9 | D9: 4 | E9: 7.6 | G9: aquastore | H9: Fait
A10: Joint uniseal® 20mm | C10: 2.75 | D10: 1 | E10: 2.75 | G10: Neo3plus | H10: Fait
A11: Tuyau souple 20mm | C11: 1.4 | D11: 3 | E11: 4.2 | G11: garda-aquatic | H11: Fait
A12: tube 20mm | C12: 2.9 | D12: 1 | E12: 2.9 | G12: aquastore | H12: Fait
A13: Embout cannelé 20mm | C13: 1.9 | D13: 1 | E13: 1.9 | G13: aquastore | H13: Fait
A14: Coude 90 20mm | C14: 1.7 | D14: 1 | E14: 1.7 | G14: aquastore | H14: Fait
A15: Colle PVC | C15: 7.9 | D15: 1 | E15: 7.9 | F15: Colle N-30 pour PVC - 250ml | G15: aquastore | H15: Fait
A16: Sac perlon | C16: 1.33 | D16: 2 | E16: 2.66 | G16: Fabriqué | H16: Fait
A17: Peigne | C17: 9.9 | D17: 1 | E17: 9.9 | G17: aquastore | H17: Fait
D18: Total | E18: =SUM(E2:E17) -> 113.56

Sheet Osmoseur
A1: Matériels | B1: Ref | C1: PU | D1: Nombre | E1: total | F1: Remarques | G1: Site | H1: Date D'achat
A2: Osmoseur | C2: 39.9 | D2: 1 | E2: =D2*C2 -> 39.9 | G2: aquastore | H2: Fait
A3: Pompe | C3: 65.99 | D3: 1 | E3: 57.53 | G3: Manomano | H3: Fait
A4: TDS metre | C4: 2.01 | D4: 1 | E4: =D4*C4 -> 2.01 | G4: Aliexpress | H4: Fait
A5: Robiné double | C5: 21.1 | D5: 1 | E5: =D5*C5 -> 21.1 | G5: Magasin de bricolage | H5: Fait
A6: Sortie pompe | C6: 12.46 | D6: 1 | E6: =D6*C6 -> 12.46 | G6: aquastore | H6: Fait
D7: Total | E7: =SUM(E2:E5) -> 120.54
